Cogmind - Beta 14 @@@ ROGUE MODE // 2024.12.19 @ 06:11:22 Player: The Gourd Result: Destroyed by AF-9Y5(R) with Subdweller Laser Performance ------------- Evolutions (0) 0 Regions Visited (2) 400 Robots Destroyed (26) 130 Value Destroyed (538) 538 Prototype IDs (0) 0 Alien Tech Used (0) 0 Bonus (0) 0 TOTAL SCORE: 1068 Bonus ------- None Cogmind --------- Core Integrity 0/250 Matter 140/300 Energy 250/250 System Corruption 3% Temperature Cool (6) Movement Treading (240) Ox1 Location -10/Subcaves Parts ------- > --- POWER (1) -------- Ion Engine > --- PROPULSION (2) --- Light Treads Light Treads > --- UTILITY (2) ------ High-capacity Storage Unit Seismic Detector > --- WEAPON (2) ------- Battle Rifle Subdweller Machine Gun > --- INVENTORY (20) --- Light Treads Wheel Subdweller Optics Light Assault Rifle Grenade Launcher SUBCON Basin (Full) Peak State ------------ > --- POWER ------------ Ion Engine > --- PROPULSION ------- Light Treads Light Treads > --- UTILITY ---------- High-capacity Storage Unit Seismic Detector > --- WEAPON ----------- Battle Rifle Subdweller Machine Gun > --- INVENTORY -------- Light Treads Wheel Light Assault Rifle Grenade Launcher SUBCON Basin [Rating: 27] Favorites ----------- Power Ion Engine Engine Ion Engine Propulsion Light Treads Treads Light Treads Wheel Wheel Utility Seismic Detector Device Seismic Detector Storage High-capacity Storage Unit Weapon Light Assault Rifle Ballistic Gun Light Assault Rifle Launcher Grenade Launcher Special Weapon Mining Laser Build | -11 -10 -10 ------- Run | Yrd Mat Sub Slots Evolved . | . . . Power . | . . . Propulsion . | . . . Utility . | . . . Weapon . | . . . Parts Attached 32 | 7 9 16 Power 3 | 1 1 1 Engine 3 | 1 1 1 Core . | . . . Reactor . | . . . Propulsion 6 | 2 2 2 Treads 4 | 1 1 2 Leg . | . . . Wheel 2 | 1 1 . Hover . | . . . Flight . | . . . Utility 6 | 2 3 1 Device 3 | 1 1 1 Storage 3 | 1 2 . Processor . | . . . Hackware . | . . . Protection . | . . . Artifact . | . . . Weapon 17 | 2 3 12 Energy Gun . | . . . Energy Cannon . | . . . Ballistic Gun 8 | 2 1 5 Ballistic Cannon . | . . . Launcher 5 | . 1 4 Special Weapon 4 | . 1 3 Impact Weapon . | . . . Slashing Weapon . | . . . Piercing Weapon . | . . . Special Melee Weapon . | . . . Unidentified Prototypes . | . . . Parts Lost 3 | . 1 2 Power 1 | . 1 . Propulsion . | . . . Utility 1 | . . 1 Weapon 1 | . . 1 Highest Loss Streak 1 | . 1 1 To Critical Strikes . | . . . Average Slot Usage (%) 99 | . 99 99 Engine 13 | . 13 13 Treads 23 | . 14 27 Wheel 4 | . 14 . Device 13 | . 13 13 Storage 14 | . 14 14 Ballistic Gun 19 | . 27 16 Launcher 2 | . . 3 Special Weapon 6 | . . 8 Peak Build Rating 27 | 7 8 27 Average Rating 16 | 5 7 21 On Entrance 5 | . 7 8 Naked Turns . | . . . Heaviest Build 53 | 12 49 53 Greatest Support 40 | 20 20 40 Greatest Overweight (x) 4 | 1 4 4 Average Overweight (x) 1 | . 1 1 Largest Inventory Capacity 20 | 8 20 20 Average Capacity 17 | 7 13 20 Most Carried 20 | 8 15 20 Average Carried 15 | 5 10 18 Final Capacity 20 | 8 20 20 Final Carried 20 | 7 15 20 Class Distribution -------------------- 100% | Mutant Dominant Class ---------------- Mutant | -10/Materials Mutant | -10/Subcaves Resources | -11 -10 -10 ----------- Run | Yrd Mat Sub Matter Collected 879 | 362 219 298 Remotely . | . . . Salvage Created 700 | 231 282 187 Parts 54 | 24 21 9 Haulers Intercepted 1 | . 1 . Recyclers Shooed . | . . . Parts Field Recycled . | . . . Retrieved Matter . | . . . Parts Self-Destructed 14 | . . 14 Prevented . | . . . Kills | -11 -10 -10 ------- Run | Yrd Mat Sub Combat Hostiles Destroyed 16 | . 8 8 Guns 9 | . 6 3 AOE 7 | . 2 5 Classes Destroyed 6 | 2 3 1 Tunneler 8 | 8 . . Hauler 1 | . 1 . Recycler 1 | 1 . . Swarmer 5 | . 3 2 Grunt 7 | . 5 2 Subdweller 4 | . . 4 Best Kill Streak 3 | 2 3 2 Combat Bots Only 3 | . 3 2 Max Kills in Single Turn 2 | 1 2 2 Gunslinging . | . . . Exploded 2 | . 2 2 Melee . | . . . Uniques/NPCs Destroyed . | . . . Combat | -11 -10 -10 -------- Run | Yrd Mat Sub Hostile Shots Fired 62 | . 33 29 Missed 14 | . 7 7 Damage Taken 1003 | . 280 723 Core 256 | . 57 199 Absorbed by Shields . | . . . Regen/Repaired (Parts) 74 | . 74 . Core Remaining (%) 100 | 100 . . Volleys Fired 114 | 23 35 56 Largest 2 | 2 2 2 Hottest 130 | 40 100 130 Shots Fired 181 | 46 66 69 Gun 131 | 46 61 24 Cannon . | . . . Launcher 17 | . 1 16 Special 33 | . 4 29 Kinetic 131 | 46 61 24 Thermal 33 | . 4 29 Explosive 17 | . 1 16 Electromagnetic . | . . . Robot Hit Streak 27 | 11 27 15 Robot Miss Streak 6 | 2 6 2 Penetration Max . | . . . Secondary Targets . | . . . Shots Hit Robots 97 | 31 43 23 Core Hits 42 | 12 14 16 Critical Kills . | . . . Critical Parts Destroyed 2 | . 2 . Critical Strikes 2 | . 2 . Destroy 2 | . 2 . Melee Attacks . | . . . Impact . | . . . Slashing . | . . . Piercing . | . . . Sneak Attacks . | . . . Combat Hostiles . | . . . Follow-up Attacks . | . . . Damage Inflicted 1516 | 372 521 623 Guns 1040 | 372 429 239 Cannons . | . . . Explosions 476 | . 92 384 Melee . | . . . Ramming . | . . . Kinetic 1040 | 372 429 239 Thermal . | . . . Explosive 476 | . 92 384 Electromagnetic . | . . . Impact . | . . . Slashing . | . . . Piercing . | . . . Highest Corruption 3 | . 2 3 Average Corruption 2 | . 2 2 Corruption Purged . | . . . Corruption Blocked . | . . . Effects 46 | . 12 34 Message Errors 9 | . 3 6 Matter Fused 8 | . 2 6 Heat Flow Errors 8 | . 1 7 Energy Discharges 12 | . 3 9 Parts Fused 1 | . 1 . Data Loss (minor) 6 | . 2 4 Data Loss (major) 1 | . . 1 Alerts 1 | . . 1 Overload Shots . | . . . Overflow Damage . | . . . Projectiles . | . . . Explosions . | . . . Melee . | . . . Knockbacks . | . . . Impact . | . . . Kinetic . | . . . Secondary . | . . . Self-Inflicted Damage 84 | . . 84 Shots 3 | . . 3 Rammed . | . . . Targets Rammed . | . . . Kicked . | . . . Crushed . | . . . Highest Temperature 235 | . 197 235 Average Temperature 64 | . 45 89 Received Heat Transfer 225 | . 96 129 Siege Activations . | . . . Robots Corrupted . | . . . Combat Hostiles . | . . . Parts Fried . | . . . Impact Corruptions . | . . . Robots Melted . | . . . Combat Hostiles . | . . . Parts Melted . | . . . Heat Transferred . | . . . Parts Sabotaged . | . . . Parts Stolen . | . . . Parts Stripped . | . . . Power Chain Reactions . | . . . Alert | -11 -10 -10 ------- Run | Yrd Mat Sub Peak Influence 297 | 45 297 . Initial 29 | . 29 . Average 120 | 22 151 . Maximum Alert Level 1 | . 1 . Low Security (%) 75 | 100 67 . Level 1 24 | . 32 . Level 2 . | . . . Level 3 . | . . . Level 4 . | . . . Level 5 . | . . . High Security . | . . . Max Security . | . . . Squads Dispatched 2 | . 2 . Investigation 1 | . 1 . Extermination . | . . . Reinforcement 1 | . 1 . Assault . | . . . Garrison . | . . . Intercept . | . . . Searches Triggered . | . . . Construction Impeded . | . . . Haulers Reinforced . | . . . Active Scanning Responses . | . . . Cargo Convoy Interrupts . | . . . Stealth | -11 -10 -10 --------- Run | Yrd Mat Sub Distress Signals . | . . . Communications Jammed . | . . . Distress Signals . | . . . Times Spotted 20 | . 11 9 Peak Tracking Total 3 | . 3 2 Tactical Retreats 1 | . 1 . Traps | -11 -10 -10 ------- Run | Yrd Mat Sub Traps Triggered 2 | . 2 . Indirectly . | . . . Trap Hack Attempts . | . . . Triggered . | . . . Disarmed . | . . . Reprogrammed . | . . . Reused . | . . . Traps Extracted . | . . . Installed . | . . . Triggered . | . . . Machines | -11 -10 -10 ---------- Run | Yrd Mat Sub Machines Disabled . | . . . Max in Single Turn . | . . . Machines Repaired . | . . . Machines Dismantled . | . . . Machines Sabotaged . | . . . Overloaded Fab Kills . | . . . Hacking | -11 -10 -10 --------- Run | Yrd Mat Sub Machines Accessed 10 | . 7 3 Terminals 5 | . 5 . Fabricators . | . . . Repair Stations 1 | . 1 . Recycling Units 1 | . 1 . Scanalyzers . | . . . Garrison Access . | . . . Total Hacks 29 | . 23 6 Successful 21 | . 15 6 Failed 8 | . 8 . Catastrophic . | . . . Database Lockouts . | . . . Manual 15 | . 15 . Terminals 15 | . 15 . Fabricators . | . . . Repair Stations 7 | . 7 . Recycling Units 1 | . 1 . Scanalyzers . | . . . Garrison Access . | . . . Terminal Hacks 6 | . . 6 Record 4 | . . 4 Open Door 1 | . . 1 Release Object 1 | . . 1 Fabricator Hacks . | . . . Repair Station Hacks 5 | . 5 . Scan Component 3 | . 3 . Repair 2 | . 2 . Recycling Unit Hacks . | . . . Scanalyzer . | . . . Garrison Access Hacks . | . . . Unauthorized Hacks 10 | . 10 . Terminals 9 | . 9 . Botnet 3 | . 3 . Operators 1 | . 1 . Skim 5 | . 5 . Fabricators . | . . . Repair Stations . | . . . Recycling Units 1 | . 1 . Tunnel 1 | . 1 . Scanalyzers . | . . . Garrison Access . | . . . Data Cores Recovered . | . . . Used . | . . . Hacking Detections 6 | . 6 . Full Trace Events . | . . . Feedback Events . | . . . Feedback Blocked . | . . . Robot Schematics Acquired . | . . . Robots Built . | . . . Authchips . | . . . Time . | . . . Total Robot Build Rating . | . . . Part Schematics Acquired . | . . . Parts Built . | . . . Authchips . | . . . Time . | . . . Total Part Build Rating . | . . . Parts Repaired 2 | . 2 . Time 52 | . 52 . Parts Recycled . | . . . Recycled Matter . | . . . Retrieved Matter . | . . . Retrieved Components . | . . . Parts Scanalyzed . | . . . Part Schematics Acquired . | . . . Parts Damaged . | . . . Bothacking | -11 -10 -10 ------------ Run | Yrd Mat Sub Used RIF Installer . | . . . Robots Hacked . | . . . Non-combat . | . . . Combat . | . . . Robot Hacks Applied . | . . . Relay Couplers Released . | . . . Fabnet Peak Effective % . | . . . Robots Rewired . | . . . Allies Hacked . | . . . Hacks Repelled . | . . . Allies | -11 -10 -10 -------- Run | Yrd Mat Sub Total Allies . | . . . Largest Group . | . . . Highest-Rated Group . | . . . Highest-Rated Ally . | . . . Total Orders . | . . . Ally Attacks . | . . . Total Damage . | . . . Kills . | . . . Allies Corrupted . | . . . Allies Melted . | . . . Intel | -11 -10 -10 ------- Run | Yrd Mat Sub Robot Analysis Total . | . . . Derelict Logs Recovered 1 | . . 1 Drone Launches . | . . . Drone Recoveries . | . . . Exploration | -11 -10 -10 ------------- Run | Yrd Mat Sub Turns Passed 3735 | 287 898 2550 Spaces Moved 1564 | 163 490 911 Core 3 | 3 . . Treads 905 | 1 43 861 Legs . | . . . Wheels 656 | 159 447 50 Hover . | . . . Flight . | . . . Fastest Speed 50 | 50 95 140 Average Speed 184 | 93 120 234 Slowest Speed 240 | 160 240 240 Overloaded Moves . | . . . Propulsion Burnouts . | . . . Robots Hopped . | . . . Cave-ins Triggered 1 | . . 1 Exploration Rate (%) 40 | 6 65 49 Regions Visited 2 Branch Regions 1 Pre-discovered Areas 2 | . 1 1 Known Exits Taken 1 | . 1 . Unknown Exits Taken 1 | 1 . . Scrap Searched 1 | . . 1 Spaces Dug 54 | . 3 51 Terrain Destroyed 153 | . 12 141 Melee . | . . . Projectile 13 | . 4 9 AOE 140 | . 8 132 Terrain Rammed . | . . . Walls Destroyed . | . . . Machines Disabled . | . . . Actions | -11 -10 -10 --------- Run | Yrd Mat Sub Total 2188 | 255 732 1201 Wait 426 | 47 179 200 Move 1561 | 162 489 910 Hop . | . . . Pick Up 29 | 12 13 4 Fast Attach 7 | 6 1 . Attach 6 | 1 1 4 Detach 2 | . . 2 Swap 19 | . 7 12 Drop 23 | 4 7 12 Fire 114 | 23 35 56 Melee . | . . . Ram . | . . . Kick . | . . . Crush . | . . . Escape Stasis 1 | . . 1 Rewire . | . . . Trap . | . . . Miscellaneous . | . . . Route ------- -11/Scrapyard -10/Materials (discovered 5 exits: *Mat x3 / *Min / *Sub) -10/Subcaves (discovered 2 exits: [*Mat x2]) History --------- Turn | Location | Event 30 | -11/Scrapyard | Discovered new exit (range 14) 288 | -11/Scrapyard | Entered Materials 308 | -10/Materials | Build established: Mutant 666 | -10/Materials | Identified exit to Materials 703 | -10/Materials | Learned Storage emergency access door positions 730 | -10/Materials | Learned 4 Subcaves zone layouts 749 | -10/Materials | Learned Recycling recycling unit intel 757 | -10/Materials | Identified exit to Subcaves 758 | -10/Materials | Learned Storage security intel 768 | -10/Materials | Identified exit to Mines 954 | -10/Materials | Repaired Seismic Detector 982 | -10/Materials | Repaired Lgt. Treads 1186 | -10/Materials | Entered Subcaves 1343 | -10/Subcaves | Learned location of 1 exit from Materials 1410 | -10/Subcaves | Discovered new exit (range 11) 1636 | -10/Subcaves | Ambushed by Subdweller buried in earth 1663 | -10/Subcaves | Shifting Twisted Machinery released Scrap Shield 1736 | -10/Subcaves | Discovered new exit (range 12) 1838 | -10/Subcaves | Found SUBCON Basin 2171 | -10/Subcaves | Learned location of Zion (-6) 2171 | -10/Subcaves | Met a Zionite searching for "candidates" 2536 | -10/Subcaves | Visited Clippyterm 2543 | -10/Subcaves | Learned Research machine intel 2678 | -10/Subcaves | Ambushed by Subdweller buried in earth 2682 | -10/Subcaves | Ambushed by Subdweller buried in earth 2888 | -10/Subcaves | Crushed by falling debris 2889 | -10/Subcaves | Core integrity fell below 50% 2889 | -10/Subcaves | Core integrity fell below 20% 3146 | -10/Subcaves | A Subdweller sparked back to life 3736 | -10/Subcaves | Destroyed by AF-9Y5(R) with Subdweller Laser Last Messages --------------- 03066_ System corrupted: Heat flow error (+245). 03146_ 6T-K4R(R) creaks and sparks as it begins to move. 03313_ System corrupted: Heat flow error (+127). 03346_ System corrupted: Energy discharge (-95). 03383_ System corrupted: Matter fused (-5). 03411_ Acquired Battle Rifle. 03417_ 03VCP1PWVR=DELHYOI9 03706_ Acquired 7 matter. Map ----- +----------------------------------------------------+ | ?????????????????????????????????????????????????? | | ?????????????????????????????????????????????????? | | ?????????????????????????????????????????????????? | | ?????????????????????????????????????????????????? | | ?????????????????????????????????????????????????? | | ?????????????????????????????????????????????????? | | ?????????????????????????????????????????????????? | | ?????????????????????????????????????????????????? | | ?????????????????????????????????????????????????? | | ?????????????????????????????????????????????????? | | ?????????????????????????????????????????????????? | | ?????????????????????????????????????????????????? | | ?????????????????????????????????????????????????? | | ?????????????????????????????????????????????????? | | ?????????????????????????????????????????????????? | | ?????????????????????????????????????????????????? | | ?????????????????????????????????????????????????? | | ?????????????????????????????????????????????????? | | ?????????????????????????????????????????????????? | | ?????????????????????????????????????????????????? | | ??????????????????????????????#??????????????????? | | ????????????????????????????? #??????????????????? | | ???????????????????????????## #??????????????????? | | ??????????????????????????? "???????????????????? | | ????????????????????????### ##???????????????????? | | ????????????????????????#@< <#####???????????????? | | ??????????????????????### R #???????????????? | | ??????????????????????# #???????????????? | | #?????????????????????# O !##???????????????? | | #?????????????????????# #### #????????????????? | | #?????????????????????# ##??? ##???????????????? | | #????????????????????## #???# #???????????????? | | ##???????????????????# ##### ##???????????????? | | #???????????????????## # #????????????????? | | #####????????????????# #?###????????????? | | #???????????????## ## ##????? ??? | | ## ##########?###### ## ### #??? ??? | | ## ## # ### # ##### #?? ??? | | ## ## #### ## ??? | | ### #### # # ## ?? | | ######??######## ### #?? | | ###?????##### #?### #### ### | | ####### #???## #???# # | | # " ## #????## #### #??# | | ##"" ##?????#### #???## ##???# | | ?#"" ######?????## ###????###### | | ##" ## ## #??????# ####### | | "" ### #??????# # | | #" ## ##?????## #?# | | #" ## ## #????### ##????# | +----------------------------------------------------+ Best States ------------- Heat Dissipation 25 Energy Generation 10 Energy Capacity 250 Matter Stores 300 Matter Capacity 300 Sight Range 16 Terrain Scan Density 10 Evasion (%) 44 Recoil Reduction 2 Item Schematics ----------------- None Robot Schematics ------------------ None Fabricated ------------ Nothing Alien Tech Used ----------------- None Achievements -------------- None Challenges ------------ None Game ------ Seed PointActuatorExtractor Manual? 0 Play Time 00:28:15 Cumulative 99.3 hours Start 2024.12.19 @ 05:43:46 End 2024.12.19 @ 06:11:22 Sessions 1 Manual Loads 0 Difficulty Rogue Special Mode None Game No. 66 Rogue 66 Adventurer 0 Explorer 0 Win Type - Total 1 Types 1/0/0/0/0/0/0/0/0 Lore% 24 Gallery% 49 Achievement% 48 Wizard Run 0 Options --------- Layout 1 ASCII 0 Keyboard 1 Movement Vi Keybinds 1 Fullscreen 1 Font 32/SmallcapsGlow Map View 50x35 Zoom Use 0% Tactical HUD 1 Map Filters NONE Filters NONE Steam 1 RUN: b4b9982c-22a2-42e6-bba5-b25cdf6db680